Workbook

Sheet Лист1
A1: Школа | C1: МБОУ "Пестречинская СОШ №1 им. Героя России И.А. Додосова" | F1: Утвердил: | G1: должность | H1: Директор
A2: Типовое примерное меню приготавливаемых блюд | G2: фамилия | H2: Утяганова Н.И
A3: Возрастная категория | E3: 7-11 лет | G3: дата | H3: 2 | I3: 9 | J3: 2024
H4: день | I4: месяц | J4: год
A5: Неделя | B5: День недели | C5: Прием пищи | D5: Раздел меню | E5: Блюда | F5: Вес блюда, г | G5: Белки | H5: Жиры | I5: Углеводы | J5: Калорийность | K5: № рецептуры | L5: Цена
A6: 1 | B6: 1 | C6: Завтрак | D6: гор.блюдо | E6: Котлеты "Аппетитные" | F6: 90 | G6: 10.01 | H6: 12.7 | I6: 10.98 | J6: 198 | K6: ТТК2022г
D7: гор.блюдо | E7: каша гречневая | F7: 150 | G7: 6.62 | H7: 5.39 | I7: 41.87 | J7: 242 | K7: №302/2015
D8: гор.напиток | E8: Чай сладкий | F8: 208 | G8: 0.02 | H8: 0 | I8: 7.99 | J8: 32 | K8: ТТК 2021г
D9: хлеб | E9: Хлебная корзина | F9: 40 | G9: 2.52 | H9: 0.36 | I9: 18.84 | J9: 91
D10: фрукты
D11: конд.изд. | E11: Печенье | F11: 30 | G11: 0.55 | H11: 0.87 | I11: 4.39 | J11: 31 | K11: ТТК 2018г
D13: итого | F13: =SUM(F6:F12) -> 518 | G13: =SUM(G6:G12) -> 19.72 | H13: 19.32 | I13: 84.07 | J13: 594 | L13: =SUM(L6:L12) -> 0
A14: =A6 -> 1 | B14: =B6 -> 1 | C14: Обед | D14: закуска
D15: 1 блюдо
D16: 2 блюдо
D17: гарнир
D18: напиток
D19: хлеб бел.
D20: хлеб черн.
D23: итого | F23: =SUM(F14:F22) -> 0 | G23: =SUM(G14:G22) -> 0 | H23: 0 | I23: 0 | J23: 0 | L23: =SUM(L14:L22) -> 0
A24: =A6 -> 1 | B24: =B6 -> 1 | C24: Итого за день: | F24: =F13+F23 -> 518 | G24: =G13+G23 -> 19.72 | H24: 19.32 | I24: 84.07 | J24: 594 | L24: =L13+L23 -> 0
A25: 1 | B25: 2 | C25: Завтрак | D25: гор.блюдо | E25: Жаркое по домашнему | F25: 200 | G25: 12.55 | H25: 17.93 | I25: 39.88 | J25: 370 | K25: ТТК 2022г
D27: гор.напиток | E27: Чай сладкий | F27: 208 | G27: 0.02 | H27: 0 | I27: 7.99 | J27: 32 | K27: ТТК 2021г
D28: хлеб | E28: Хлебная корзина | F28: 40 | G28: 2.52 | H28: 0.36 | I28: 18.84 | J28: 91
D29: фрукты | E29: Яблоки | F29: 120 | G29: 0.48 | H29: 0.48 | I29: 11.76 | J29: 56 | K29: №338/2015г
D32: итого | F32: =SUM(F25:F31) -> 568 | G32: =SUM(G25:G31) -> 15.57 | H32: =SUM(H25:H31) -> 18.77 | I32: =SUM(I25:I31) -> 78.47 | J32: =SUM(J25:J31) -> 549 | L32: 0
A33: =A25 -> 1 | B33: =B25 -> 2 | C33: Обед | D33: закуска
D34: 1 блюдо
D35: 2 блюдо
D36: гарнир
D37: напиток
D38: хлеб бел.
D39: хлеб черн.
D42: итого | F42: =SUM(F33:F41) -> 0 | G42: =SUM(G33:G41) -> 0 | H42: =SUM(H33:H41) -> 0 | I42: =SUM(I33:I41) -> 0 | J42: =SUM(J33:J41) -> 0 | L42: 0
A43: =A25 -> 1 | B43: =B25 -> 2 | C43: Итого за день: | F43: =F32+F42 -> 568 | G43: =G32+G42 -> 15.57 | H43: =H32+H42 -> 18.77 | I43: =I32+I42 -> 78.47 | J43: =J32+J42 -> 549 | L43: 0
A44: 1 | B44: 3 | C44: Завтрак | D44: гор.блюдо | E44: Макароны отварные | F44: 150 | G44: 5.64 | H44: 4.46 | I44: 35.94 | J44: 207 | K44: №202/2015г
D45: гор.блюдо | E45: Чикен | F45: 90 | G45: 9.1 | H45: 10.11 | I45: 19.09 | J45: 202 | K45: ТТК 2022г
D46: гор.напиток | E46: Чай сладкий | F46: 208 | G46: 0.02 | H46: 0 | I46: 7.99 | J46: 32 | K46: ТТК2021г
D47: хлеб | E47: Хлебная корзина | F47: 40 | G47: 2.52 | H47: 0.36 | I47: 18.84 | J47: 91
D48: фрукты
D49: закуска | E49: салат с капустой | F49: 60 | G49: 0.93 | H49: 3.05 | I49: 5.64 | J49: 54 | K49: №45/2015г
D51: итого | F51: =SUM(F44:F50) -> 548 | G51: =SUM(G44:G50) -> 18.21 | H51: =SUM(H44:H50) -> 17.98 | I51: =SUM(I44:I50) -> 87.5 | J51: =SUM(J44:J50) -> 586 | L51: 0
A52: =A44 -> 1 | B52: =B44 -> 3 | C52: Обед | D52: закуска
D53: 1 блюдо
D54: 2 блюдо
D55: гарнир
D56: напиток
D57: хлеб бел.
D58: хлеб черн.
D61: итого | F61: =SUM(F52:F60) -> 0 | G61: =SUM(G52:G60) -> 0 | H61: =SUM(H52:H60) -> 0 | I61: =SUM(I52:I60) -> 0 | J61: =SUM(J52:J60) -> 0 | L61: 0
A62: =A44 -> 1 | B62: =B44 -> 3 | C62: Итого за день: | F62: =F51+F61 -> 548 | G62: =G51+G61 -> 18.21 | H62: =H51+H61 -> 17.98 | I62: =I51+I61 -> 87.5 | J62: =J51+J61 -> 586 | L62: 0
A63: 1 | B63: 4 | C63: Завтрак | D63: гор.блюдо | E63: Плов с говядиной | F63: 200 | G63: 12.22 | H63: 15.61 | I63: 49.03 | J63: 384 | K63: ТТК2023г
D65: гор.напиток | E65: Чай сладкий | F65: 208 | G65: 0.02 | H65: 0 | I65: 7.99 | J65: 32 | K65: ТТК 2021г
D66: хлеб | E66: хлебная корзина | F66: 40 | G66: 2.52 | H66: 0.36 | I66: 18.84 | J66: 91
D67: фрукты
D68: закуска | E68: =[1]Лист1!E35 -> помидоры | F68: =[1]Лист1!F35 -> 60 | G68: =[1]Лист1!G35 -> 0.66 | H68: =[1]Лист1!H35 -> 0.12 | I68: =[1]Лист1!I35 -> 2.28 | J68: =[1]Лист1!J35 -> 14 | K68: =[1]Лист1!K35 -> №71/2015г
D70: итого | F70: =SUM(F63:F69) -> 508 | G70: =SUM(G63:G69) -> 15.42 | H70: =SUM(H63:H69) -> 16.09 | I70: =SUM(I63:I69) -> 78.14 | J70: =SUM(J63:J69) -> 521 | L70: 0
A71: =A63 -> 1 | B71: =B63 -> 4 | C71: Обед | D71: закуска
D72: 1 блюдо
D73: 2 блюдо
D74: гарнир
D75: напиток
D76: хлеб бел.
D77: хлеб черн.
D80: итого | F80: =SUM(F71:F79) -> 0 | G80: =SUM(G71:G79) -> 0 | H80: =SUM(H71:H79) -> 0 | I80: =SUM(I71:I79) -> 0 | J80: =SUM(J71:J79) -> 0 | L80: 0
A81: =A63 -> 1 | B81: =B63 -> 4 | C81: Итого за день: | F81: =F70+F80 -> 508 | G81: =G70+G80 -> 15.42 | H81: =H70+H80 -> 16.09 | I81: =I70+I80 -> 78.14 | J81: =J70+J80 -> 521 | L81: 0
A82: 1 | B82: 5 | C82: Завтрак | D82: гор.блюдо | E82: Пюре картофельное | F82: 150 | G82: 3.28 | H82: 4.65 | I82: 29.93 | J82: 174 | K82: №312/2015г
D83: гор.блюдо | E83: Биточки рыбные | F83: 90 | G83: 12.06 | H83: 15.31 | I83: 15.92 | J83: 238 | K83: ТТК2021г
D84: гор.напиток | E84: Чай сладкий | F84: 208 | G84: 0.02 | H84: 0 | I84: 7.99 | J84: 32 | K84: ТТК2021г
D85: хлеб | E85: хлебная корзина | F85: 40 | G85: 2.52 | H85: 0.36 | I85: 18.84 | J85: 91
D86: фрукты
D87: закуска | E87: =[1]Лист1!E43 -> огурцы | F87: =[1]Лист1!F43 -> 30 | G87: =[1]Лист1!G43 -> 0.21 | H87: =[1]Лист1!H43 -> 0.03 | I87: =[1]Лист1!I43 -> 0.57 | J87: =[1]Лист1!J43 -> 3 | K87: =[1]Лист1!K43 -> №71/2015г
D89: итого | F89: =SUM(F82:F88) -> 518 | G89: =SUM(G82:G88) -> 18.09 | H89: =SUM(H82:H88) -> 20.35 | I89: =SUM(I82:I88) -> 73.25 | J89: =SUM(J82:J88) -> 538 | L89: 0
A90: =A82 -> 1 | B90: =B82 -> 5 | C90: Обед | D90: закуска
D91: 1 блюдо
D92: 2 блюдо
D93: гарнир
D94: напиток
D95: хлеб бел.
D96: хлеб черн.
D99: итого | F99: =SUM(F90:F98) -> 0 | G99: =SUM(G90:G98) -> 0 | H99: =SUM(H90:H98) -> 0 | I99: =SUM(I90:I98) -> 0 | J99: =SUM(J90:J98) -> 0 | L99: 0
A100: =A82 -> 1 | B100: =B82 -> 5 | C100: Итого за день: | F100: =F89+F99 -> 518 | G100: =G89+G99 -> 18.09 | H100: =H89+H99 -> 20.35 | I100: =I89+I99 -> 73.25 | J100: =J89+J99 -> 538 | L100: 0
A101: 2 | B101: 1 | C101: Завтрак | D101: гор.блюдо | E101: =[1]Лист1!E47 -> Тефтели в соусе | F101: =[1]Лист1!F47 -> 90 | G101: =[1]Лист1!G47 -> 9.79 | H101: =[1]Лист1!H47 -> 13.93 | I101: =[1]Лист1!I47 -> 7.73 | J101: =[1]Лист1!J47 -> 192 | K101: =[1]Лист1!K47 -> ТТК2023г
D102: гор.блюдо | E102: =[1]Лист1!E48 -> рис отварной | F102: =[1]Лист1!F48 -> 150 | G102: =[1]Лист1!G48 -> 3.83 | H102: =[1]Лист1!H48 -> 5.43 | I102: =[1]Лист1!I48 -> 40.01 | J102: =[1]Лист1!J48 -> 224 | K102: =[1]Лист1!K48 -> №304/2015г
D103: гор.напиток | E103: =[1]Лист1!E49 -> Чай сладкий | F103: =[1]Лист1!F49 -> 208 | G103: =[1]Лист1!G49 -> 0.02 | H103: =[1]Лист1!H49 -> 0 | I103: =[1]Лист1!I49 -> 7.99 | J103: =[1]Лист1!J49 -> 32 | K103: =[1]Лист1!K49 -> ТТК2021г
D104: хлеб | E104: =[1]Лист1!E50 -> Хлебная корзина | F104: =[1]Лист1!F50 -> 40 | G104: =[1]Лист1!G50 -> 2.52 | H104: =[1]Лист1!H50 -> 0.36 | I104: =[1]Лист1!I50 -> 18.84 | J104: =[1]Лист1!J50 -> 91 | K104: =[1]Лист1!K50 -> 0
D105: фрукты
D106: кон.изд. | E106: =[1]Лист1!E51 -> печенье | F106: =[1]Лист1!F51 -> 30 | G106: =[1]Лист1!G51 -> 0.33 | H106: =[1]Лист1!H51 -> 0.06 | I106: =[1]Лист1!I51 -> 1.14 | J106: =[1]Лист1!J51 -> 7 | K106: =[1]Лист1!K51 -> ТТК 2021г
D108: итого | F108: =SUM(F101:F107) -> 518 | G108: =SUM(G101:G107) -> 16.49 | H108: 19.78 | I108: 75.71 | J108: 546 | L108: =SUM(L101:L107) -> 0
A109: =A101 -> 2 | B109: =B101 -> 1 | C109: Обед | D109: закуска
D110: 1 блюдо
D111: 2 блюдо
D112: гарнир
D113: напиток
D114: хлеб бел.
D115: хлеб черн.
D118: итого | F118: =SUM(F109:F117) -> 0 | G118: =SUM(G109:G117) -> 0 | H118: 0 | I118: 0 | J118: 0 | L118: =SUM(L109:L117) -> 0
A119: =A101 -> 2 | B119: =B101 -> 1 | C119: Итого за день: | F119: =F108+F118 -> 518 | G119: =G108+G118 -> 16.49 | H119: =H108+H118 -> 19.78 | I119: =I108+I118 -> 75.71 | J119: =J108+J118 -> 546 | L119: 0
A120: 2 | B120: 2 | C120: Завтрак | D120: гор.блюдо | E120: =[1]Лист1!E55 -> Жаркое из птицы | F120: =[1]Лист1!F55 -> 200 | G120: =[1]Лист1!G55 -> 12.89 | H120: =[1]Лист1!H55 -> 15.91 | I120: =[1]Лист1!I55 -> 35.79 | J120: =[1]Лист1!J55 -> 340.9 | K120: =[1]Лист1!K55 -> ТТК 2023г
E121: =[1]Лист1!E56 -> 0 | F121: =[1]Лист1!F56 -> 0 | G121: =[1]Лист1!G56 -> 0 | H121: =[1]Лист1!H56 -> 0 | I121: =[1]Лист1!I56 -> 0 | J121: =[1]Лист1!J56 -> 0 | K121: =[1]Лист1!K56 -> 0
D122: гор.напиток | E122: =[1]Лист1!E57 -> Чай сладкий | F122: =[1]Лист1!F57 -> 208 | G122: =[1]Лист1!G57 -> 0.02 | H122: =[1]Лист1!H57 -> 0 | I122: =[1]Лист1!I57 -> 7.99 | J122: =[1]Лист1!J57 -> 32 | K122: =[1]Лист1!K57 -> ТТК 2021г
D123: хлеб | E123: =[1]Лист1!E58 -> Хлебная корзина | F123: =[1]Лист1!F58 -> 40 | G123: =[1]Лист1!G58 -> 2.52 | H123: =[1]Лист1!H58 -> 0.36 | I123: =[1]Лист1!I58 -> 18.84 | J123: =[1]Лист1!J58 -> 91 | K123: =[1]Лист1!K58 -> 0
D124: фрукты | E124: =[1]Лист1!E59 -> яблоки | F124: =[1]Лист1!F59 -> 120 | G124: =[1]Лист1!G59 -> 0.48 | H124: =[1]Лист1!H59 -> 0.48 | I124: =[1]Лист1!I59 -> 11.76 | J124: =[1]Лист1!J59 -> 56 | K124: =[1]Лист1!K59 -> №338/2015г
D127: итого | F127: =SUM(F120:F126) -> 568 | G127: =SUM(G120:G126) -> 15.91 | H127: 16.75 | I127: 74.38 | J127: 519.9 | L127: =SUM(L120:L126) -> 0
A128: =A120 -> 2 | B128: =B120 -> 2 | C128: Обед | D128: закуска
D129: 1 блюдо
D130: 2 блюдо
D131: гарнир
D132: напиток
D133: хлеб бел.
D134: хлеб черн.
D137: итого | F137: =SUM(F128:F136) -> 0 | G137: =SUM(G128:G136) -> 0 | H137: 0 | I137: 0 | J137: 0 | L137: =SUM(L128:L136) -> 0
A138: =A120 -> 2 | B138: =B120 -> 2 | C138: Итого за день: | F138: =F127+F137 -> 568 | G138: =G127+G137 -> 15.91 | H138: =H127+H137 -> 16.75 | I138: =I127+I137 -> 74.38 | J138: =J127+J137 -> 519.9 | L138: 0
A139: 2 | B139: 3 | C139: Завтрак | D139: гор.блюдо | E139: =[1]Лист1!E63 -> Бифштекс | F139: =[1]Лист1!F63 -> 90 | G139: =[1]Лист1!G63 -> 10.69 | H139: =[1]Лист1!H63 -> 12.03 | I139: =[1]Лист1!I63 -> 15.36 | J139: =[1]Лист1!J63 -> 210 | K139: =[1]Лист1!K63 -> ТТК2022г
D140: гор.блюдо | E140: =[1]Лист1!E64 -> каша гречневая | F140: =[1]Лист1!F64 -> 150 | G140: =[1]Лист1!G64 -> 6.62 | H140: =[1]Лист1!H64 -> 5.39 | I140: =[1]Лист1!I64 -> 41.87 | J140: =[1]Лист1!J64 -> 242 | K140: =[1]Лист1!K64 -> №302/2015г
D141: гор.напиток | E141: =[1]Лист1!E65 -> Чай сладкий | F141: =[1]Лист1!F65 -> 208 | G141: =[1]Лист1!G65 -> 0.02 | H141: =[1]Лист1!H65 -> 0 | I141: =[1]Лист1!I65 -> 7.99 | J141: =[1]Лист1!J65 -> 32 | K141: =[1]Лист1!K65 -> ТТК2021г
D142: хлеб | E142: =[1]Лист1!E66 -> Хлебная корзина | F142: =[1]Лист1!F66 -> 40 | G142: =[1]Лист1!G66 -> 2.52 | H142: =[1]Лист1!H66 -> 0.36 | I142: =[1]Лист1!I66 -> 18.84 | J142: =[1]Лист1!J66 -> 91 | K142: =[1]Лист1!K66 -> 0
D143: фрукты
D144: закуска | E144: =[1]Лист1!E67 -> помидоры | F144: =[1]Лист1!F67 -> 30 | G144: =[1]Лист1!G67 -> 0.33 | H144: =[1]Лист1!H67 -> 0.06 | I144: =[1]Лист1!I67 -> 1.14 | J144: =[1]Лист1!J67 -> 7 | K144: =[1]Лист1!K67 -> №71/2015г
D146: итого | F146: =SUM(F139:F145) -> 518 | G146: =SUM(G139:G145) -> 20.18 | H146: 17.84 | I146: 85.2 | J146: 582 | L146: =SUM(L139:L145) -> 0
A147: =A139 -> 2 | B147: =B139 -> 3 | C147: Обед | D147: закуска
D148: 1 блюдо
D149: 2 блюдо
D150: гарнир
D151: напиток
D152: хлеб бел.
D153: хлеб черн.
D156: итого | F156: =SUM(F147:F155) -> 0 | G156: =SUM(G147:G155) -> 0 | H156: 0 | I156: 0 | J156: 0 | L156: =SUM(L147:L155) -> 0
A157: =A139 -> 2 | B157: =B139 -> 3 | C157: Итого за день: | F157: =F146+F156 -> 518 | G157: =G146+G156 -> 20.18 | H157: =H146+H156 -> 17.84 | I157: =I146+I156 -> 85.2 | J157: =J146+J156 -> 582 | L157: 0
A158: 2 | B158: 4 | C158: Завтрак | D158: гор.блюдо | E158: =[1]Лист1!E71 -> Плов из птицы | F158: =[1]Лист1!F71 -> 200 | G158: =[1]Лист1!G71 -> 15.44 | H158: =[1]Лист1!H71 -> 19.29 | I158: =[1]Лист1!I71 -> 49.88 | J158: =[1]Лист1!J71 -> 430 | K158: =[1]Лист1!K71 -> ТТК2021г
E159: =[1]Лист1!E72 -> 0 | F159: =[1]Лист1!F72 -> 0 | G159: =[1]Лист1!G72 -> 0 | H159: =[1]Лист1!H72 -> 0 | I159: =[1]Лист1!I72 -> 0 | J159: =[1]Лист1!J72 -> 0 | K159: =[1]Лист1!K72 -> 0
D160: гор.напиток | E160: =[1]Лист1!E73 -> Чай сладкий | F160: =[1]Лист1!F73 -> 208 | G160: =[1]Лист1!G73 -> 0.02 | H160: =[1]Лист1!H73 -> 0 | I160: =[1]Лист1!I73 -> 7.99 | J160: =[1]Лист1!J73 -> 32 | K160: =[1]Лист1!K73 -> ТТК2021г
D161: хлеб | E161: =[1]Лист1!E74 -> Хлебная корзина | F161: =[1]Лист1!F74 -> 40 | G161: =[1]Лист1!G74 -> 2.52 | H161: =[1]Лист1!H74 -> 0.36 | I161: =[1]Лист1!I74 -> 18.84 | J161: =[1]Лист1!J74 -> 91 | K161: =[1]Лист1!K74 -> 0
D162: фрукты
D163: закуска | E163: =[1]Лист1!E75 -> огурцы | F163: =[1]Лист1!F75 -> 60 | G163: =[1]Лист1!G75 -> 0.42 | H163: =[1]Лист1!H75 -> 0.06 | I163: =[1]Лист1!I75 -> 1.14 | J163: =[1]Лист1!J75 -> 7 | K163: =[1]Лист1!K75 -> №71/2015 г
D165: итого | F165: =SUM(F158:F164) -> 508 | G165: =SUM(G158:G164) -> 18.4 | H165: 19.71 | I165: 77.85 | J165: 560 | L165: =SUM(L158:L164) -> 0
A166: =A158 -> 2 | B166: =B158 -> 4 | C166: Обед | D166: закуска
D167: 1 блюдо
D168: 2 блюдо
D169: гарнир
D170: напиток
D171: хлеб бел.
D172: хлеб черн.
D175: итого | F175: =SUM(F166:F174) -> 0 | G175: =SUM(G166:G174) -> 0 | H175: 0 | I175: 0 | J175: 0 | L175: =SUM(L166:L174) -> 0
A176: =A158 -> 2 | B176: =B158 -> 4 | C176: Итого за день: | F176: =F165+F175 -> 508 | G176: =G165+G175 -> 18.4 | H176: =H165+H175 -> 19.71 | I176: =I165+I175 -> 77.85 | J176: =J165+J175 -> 560 | L176: 0
A177: 2 | B177: 5 | C177: Завтрак | D177: гор.блюдо | E177: =[1]Лист1!E79 -> Ежики рыбные | F177: =[1]Лист1!F79 -> 90 | G177: =[1]Лист1!G79 -> 10.25 | H177: =[1]Лист1!H79 -> 8.16 | I177: =[1]Лист1!I79 -> 25.36 | J177: =[1]Лист1!J79 -> 230 | K177: =[1]Лист1!K79 -> ТТК2023г
D178: гор.блюдо | E178: =[1]Лист1!E80 -> Пюре картофельное | F178: =[1]Лист1!F80 -> 150 | G178: =[1]Лист1!G80 -> 3.28 | H178: =[1]Лист1!H80 -> 4.65 | I178: =[1]Лист1!I80 -> 29.93 | J178: =[1]Лист1!J80 -> 176 | K178: =[1]Лист1!K80 -> №312/2015г
D179: гор.напиток | E179: =[1]Лист1!E81 -> Чай сладкий | F179: =[1]Лист1!F81 -> 208 | G179: =[1]Лист1!G81 -> 0.02 | H179: =[1]Лист1!H81 -> 0 | I179: =[1]Лист1!I81 -> 7.99 | J179: =[1]Лист1!J81 -> 32 | K179: =[1]Лист1!K81 -> №630/1996г
D180: хлеб | E180: =[1]Лист1!E82 -> Хлебная корзина | F180: =[1]Лист1!F82 -> 40 | G180: =[1]Лист1!G82 -> 2.52 | H180: =[1]Лист1!H82 -> 0.36 | I180: =[1]Лист1!I82 -> 18.84 | J180: =[1]Лист1!J82 -> 91 | K180: =[1]Лист1!K82 -> 0
D181: фрукты
D182: закуска | E182: =[1]Лист1!E83 -> салат с капустой | F182: =[1]Лист1!F83 -> 60 | G182: =[1]Лист1!G83 -> 0.93 | H182: =[1]Лист1!H83 -> 3.05 | I182: =[1]Лист1!I83 -> 5.64 | J182: =[1]Лист1!J83 -> 54 | K182: =[1]Лист1!K83 -> №45/2015г
D184: итого | F184: =SUM(F177:F183) -> 548 | G184: =SUM(G177:G183) -> 17 | H184: 16.22 | I184: 87.76 | J184: 583 | L184: =SUM(L177:L183) -> 0
A185: =A177 -> 2 | B185: =B177 -> 5 | C185: Обед | D185: закуска
D186: 1 блюдо
D187: 2 блюдо
D188: гарнир
D189: напиток
D190: хлеб бел.
D191: хлеб черн.
D194: итого | F194: =SUM(F185:F193) -> 0 | G194: =SUM(G185:G193) -> 0 | H194: 0 | I194: 0 | J194: 0 | L194: =SUM(L185:L193) -> 0
A195: =A177 -> 2 | B195: =B177 -> 5 | C195: Итого за день: | F195: =F184+F194 -> 548 | G195: =G184+G194 -> 17 | H195: =H184+H194 -> 16.22 | I195: =I184+I194 -> 87.76 | J195: =J184+J194 -> 583 | L195: 0
C196: Среднее значение за период: | F196: =(F24+F43+F62+F81+F100+F119+F138+F157+F176+F195)/(IF(F24=0,0,1)+IF(F43=0,0,1)+IF(F62=0,0,1)+IF(F81=0,0,1)+IF(F100=0,0,1)+IF(F119=0,0,1)+IF(F138=0,0,1)+IF(F157=0,0,1)+IF(F176=0,0,1)+IF(F195=0,0,1)) -> 532 | G196: =(G24+G43+G62+G81+G100+G119+G138+G157+G176+G195)/(IF(G24=0,0,1)+IF(G43=0,0,1)+IF(G62=0,0,1)+IF(G81=0,0,1)+IF(G100=0,0,1)+IF(G119=0,0,1)+IF(G138=0,0,1)+IF(G157=0,0,1)+IF(G176=0,0,1)+IF(G195=0,0,1)) -> 17.499 | H196: 18.281 | I196: 80.233 | J196: 557.89 | L196: =(L24+L43+L62+L81+L100+L119+L138+L157+L176+L195)/(IF(L24=0,0,1)+IF(L43=0,0,1)+IF(L62=0,0,1)+IF(L81=0,0,1)+IF(L100=0,0,1)+IF(L119=0,0,1)+IF(L138=0,0,1)+IF(L157=0,0,1)+IF(L176=0,0,1)+IF(L195=0,0,1)) -> 
